[Event "Early-Titled-Tuesday-Blitz-January-30-2024"]
[Site "Chess.com"]
[Date "2024.01.30"]
[Round "2"]
[White "Eagle_2019"]
[Black "biostatistician"]
[Result "1-0"]
[WhiteElo "2805"]
[BlackElo "2553"]
[TimeControl "180+1"]
[EndTime "8:19:54 PST"]
[Termination "Eagle_2019 won by resignation"]

1. d4 {[%clk 0:03:00.9]} 1... Nf6 {[%clk 0:02:59.7]} 2. Nc3 {[%clk 0:02:57.4]}
2... d5 {[%clk 0:02:59.5]} 3. Bf4 {[%clk 0:02:53.3]} 3... Bf5 {[%clk 0:02:59.6]}
4. e3 {[%clk 0:02:50.3]} 4... e6 {[%clk 0:02:59.4]} 5. Bd3 {[%clk 0:02:46.5]}
5... Bxd3 {[%clk 0:02:58.5]} 6. Qxd3 {[%clk 0:02:46.1]} 6... Nc6 {[%clk
0:02:58.1]} 7. Nge2 {[%clk 0:02:41.1]} 7... Bd6 {[%clk 0:02:57.1]} 8. O-O-O
{[%clk 0:02:38.8]} 8... Bxf4 {[%clk 0:02:54]} 9. Nxf4 {[%clk 0:02:37]} 9... Qd7
{[%clk 0:02:53.1]} 10. Qe2 {[%clk 0:02:33.3]} 10... O-O-O {[%clk 0:02:51.9]} 11.
Nd3 {[%clk 0:02:31.5]} 11... b6 {[%clk 0:02:42]} 12. Ne5 {[%clk 0:02:27.6]}
12... Nxe5 {[%clk 0:02:41.4]} 13. dxe5 {[%clk 0:02:28.5]} 13... Ne8 {[%clk
0:02:35.6]} 14. e4 {[%clk 0:02:17]} 14... c6 {[%clk 0:02:30.2]} 15. h4 {[%clk
0:02:06.2]} 15... Kb7 {[%clk 0:02:27.9]} 16. Rh3 {[%clk 0:02:02.3]} 16... d4
{[%clk 0:02:10.1]} 17. f4 {[%clk 0:01:55.4]} 17... Nc7 {[%clk 0:01:59.1]} 18.
Nb1 {[%clk 0:01:40.2]} 18... c5 {[%clk 0:01:55.8]} 19. Nd2 {[%clk 0:01:38.5]}
19... Qc6 {[%clk 0:01:35.9]} 20. Nc4 {[%clk 0:01:33.4]} 20... Rd7 {[%clk
0:01:30.4]} 21. Rb3 {[%clk 0:01:27.8]} 21... Ka8 {[%clk 0:01:20.5]} 22. Kb1
{[%clk 0:01:11.5]} 22... Rb8 {[%clk 0:01:20]} 23. h5 {[%clk 0:01:05.4]} 23... b5
{[%clk 0:00:49.5]} 24. Nd6 {[%clk 0:01:03.6]} 24... a6 {[%clk 0:00:49.1]} 25. c4
{[%clk 0:01:01.3]} 25... b4 {[%clk 0:00:43.4]} 26. a3 {[%clk 0:00:51.2]} 26...
Qa4 {[%clk 0:00:31.9]} 27. Qc2 {[%clk 0:00:47.5]} 27... Ne8 {[%clk 0:00:26.7]}
28. Nxe8 {[%clk 0:00:43.8]} 28... Rxe8 {[%clk 0:00:27.6]} 29. axb4 {[%clk
0:00:42]} 29... cxb4 {[%clk 0:00:28.5]} 30. c5 {[%clk 0:00:39.9]} 30... Qb5
{[%clk 0:00:16.7]} 31. c6 {[%clk 0:00:36.9]} 31... Rc7 {[%clk 0:00:14.7]} 32.
Rxd4 {[%clk 0:00:36.9]} 32... Rxc6 {[%clk 0:00:15.1]} 33. Qd3 {[%clk 0:00:35.5]}
33... Qxd3+ {[%clk 0:00:13.9]} 34. Rbxd3 {[%clk 0:00:34.6]} 34... Rec8 {[%clk
0:00:13.3]} 35. Rxb4 {[%clk 0:00:33.3]} 35... Rc1+ {[%clk 0:00:12.7]} 36. Ka2
{[%clk 0:00:32.4]} 36... R1c2 {[%clk 0:00:13.6]} 37. Rd7 {[%clk 0:00:30.7]}
37... R8c7 {[%clk 0:00:13]} 38. Rxc7 {[%clk 0:00:29.4]} 38... Rxc7 {[%clk
0:00:13.9]} 39. Rd4 {[%clk 0:00:28.1]} 39... Kb7 {[%clk 0:00:13.8]} 40. Rd8
{[%clk 0:00:26.8]} 40... Rc2 {[%clk 0:00:12.5]} 41. Rg8 {[%clk 0:00:23]} 41...
g6 {[%clk 0:00:11.8]} 42. h6 {[%clk 0:00:22.4]} 42... Rxg2 {[%clk 0:00:10.6]}
43. Rg7 {[%clk 0:00:22.5]} 43... Rh2 {[%clk 0:00:10]} 44. Rxf7+ {[%clk
0:00:22.2]} 44... Kc6 {[%clk 0:00:10.6]} 45. Rxh7 {[%clk 0:00:23.1]} 45... Kc5
{[%clk 0:00:09.9]} 46. Re7 {[%clk 0:00:09.4]} 46... Rxh6 {[%clk 0:00:09.3]} 47.
Rxe6 {[%clk 0:00:09.6]} 47... Rh4 {[%clk 0:00:09.1]} 48. Rxg6 {[%clk 0:00:08.8]}
48... Rxf4 {[%clk 0:00:09.2]} 49. Rxa6 {[%clk 0:00:08.7]} 49... Rxe4 {[%clk
0:00:09.2]} 50. Re6 {[%clk 0:00:08.7]} 50... Re3 {[%clk 0:00:07.7]} 51. Kb1
{[%clk 0:00:08.4]} 51... Re2 {[%clk 0:00:07.6]} 52. Ka2 {[%clk 0:00:08.1]} 52...
Kd5 {[%clk 0:00:07.7]} 53. Re8 {[%clk 0:00:08.1]} 53... Re3 {[%clk 0:00:08.2]}
54. e6 {[%clk 0:00:07.8]} 54... Kc4 {[%clk 0:00:07.9]} 55. e7 {[%clk 0:00:07.6]}
1-0

[Event "Early-Titled-Tuesday-Blitz-January-30-2024"]
[Site "Chess.com"]
[Date "2024.01.30"]
[Round "2"]
[White "DrCeltic"]
[Black "Byniolus"]
[Result "0-1"]
[WhiteElo "2562"]
[BlackElo "2823"]
[TimeControl "180+1"]
[EndTime "8:19:57 PST"]
[Termination "Byniolus won by resignation"]

1. e4 {[%clk 0:02:59.7]} 1... d6 {[%clk 0:03:00]} 2. d4 {[%clk 0:03:00]} 2...
Nf6 {[%clk 0:03:00.6]} 3. Nc3 {[%clk 0:02:59.8]} 3... c6 {[%clk 0:03:01.2]} 4.
a4 {[%clk 0:02:59.6]} 4... a5 {[%clk 0:03:00.8]} 5. Nf3 {[%clk 0:02:59.8]} 5...
Bg4 {[%clk 0:03:00.7]} 6. h3 {[%clk 0:02:59.9]} 6... Bh5 {[%clk 0:03:01.2]} 7.
Bc4 {[%clk 0:02:57.1]} 7... e6 {[%clk 0:03:01.1]} 8. Qe2 {[%clk 0:02:53.2]} 8...
Be7 {[%clk 0:02:57.9]} 9. O-O {[%clk 0:02:52.5]} 9... d5 {[%clk 0:02:57.1]} 10.
Bb3 {[%clk 0:02:14.9]} 10... dxe4 {[%clk 0:02:39]} 11. Nxe4 {[%clk 0:02:13.7]}
11... Bxf3 {[%clk 0:02:38.7]} 12. Qxf3 {[%clk 0:02:14.6]} 12... Qxd4 {[%clk
0:02:35.6]} 13. Ng5 {[%clk 0:02:04.7]} 13... h6 {[%clk 0:01:52.1]} 14. Be3
{[%clk 0:01:50.7]} 14... Qb4 {[%clk 0:01:45.9]} 15. Nxe6 {[%clk 0:01:30.3]}
15... fxe6 {[%clk 0:01:46.2]} 16. Bxe6 {[%clk 0:01:31.2]} 16... Nbd7 {[%clk
0:01:15.2]} 17. Rfe1 {[%clk 0:01:21.7]} 17... Nf8 {[%clk 0:00:32]} 18. Bf5
{[%clk 0:01:09.2]} 18... Kf7 {[%clk 0:00:31.2]} 19. c3 {[%clk 0:01:04.6]} 19...
Qb3 {[%clk 0:00:26.6]} 20. Bd4 {[%clk 0:00:57.4]} 20... Re8 {[%clk 0:00:21.8]}
21. Bxf6 {[%clk 0:00:50.3]} 21... Bxf6 {[%clk 0:00:15.5]} 22. Rxe8 {[%clk
0:00:50]} 22... Kxe8 {[%clk 0:00:15.4]} 23. Qf4 {[%clk 0:00:43.1]} 23... Kf7
{[%clk 0:00:08.4]} 24. Re1 {[%clk 0:00:34.8]} 24... g6 {[%clk 0:00:05.2]} 25.
Qc7+ {[%clk 0:00:32.4]} 25... Kg8 {[%clk 0:00:05.7]} 26. Bc8 {[%clk 0:00:25.4]}
26... Rh7 {[%clk 0:00:06.2]} 27. Qd6 {[%clk 0:00:17.3]} 27... Rf7 {[%clk
0:00:06.6]} 28. Re8 {[%clk 0:00:15.7]} 28... Kg7 {[%clk 0:00:07.3]} 29. Bg4
{[%clk 0:00:07.9]} 29... h5 {[%clk 0:00:06.7]} 30. Bf3 {[%clk 0:00:06.3]} 30...
Qxb2 {[%clk 0:00:07]} 31. Rb8 {[%clk 0:00:05.8]} 31... Qxc3 {[%clk 0:00:06.7]}
32. Re8 {[%clk 0:00:05]} 32... Qa1+ {[%clk 0:00:06.4]} 33. Kh2 {[%clk
0:00:04.9]} 33... Qd4 {[%clk 0:00:07.3]} 34. Qb8 {[%clk 0:00:04.5]} 34... b5
{[%clk 0:00:06.1]} 35. axb5 {[%clk 0:00:04.6]} 35... cxb5 {[%clk 0:00:07]} 36.
Re2 {[%clk 0:00:03.2]} 36... g5 {[%clk 0:00:05.9]} 37. Qe8 {[%clk 0:00:03.1]}
37... Qf4+ {[%clk 0:00:05.3]} 38. Kg1 {[%clk 0:00:03.3]} 38... Qc1+ {[%clk
0:00:05.6]} 39. Re1 {[%clk 0:00:03.9]} 39... Qc7 {[%clk 0:00:05.5]} 40. Bd5
{[%clk 0:00:04]} 40... Re7 {[%clk 0:00:05]} 41. Rxe7+ {[%clk 0:00:03.7]} 41...
Qxe7 {[%clk 0:00:05.9]} 42. Qxb5 {[%clk 0:00:04]} 42... Qe1+ {[%clk 0:00:05.6]}
43. Kh2 {[%clk 0:00:03.9]} 43... Be5+ {[%clk 0:00:05.4]} 44. g3 {[%clk
0:00:03.4]} 44... Qxf2+ {[%clk 0:00:05.9]} 45. Bg2 {[%clk 0:00:04.3]} 45...
Bxg3+ {[%clk 0:00:05.5]} 46. Kh1 {[%clk 0:00:04.8]} 46... Qe1+ {[%clk
0:00:06.1]} 47. Bf1 {[%clk 0:00:05.4]} 47... Qe5 {[%clk 0:00:05.4]} 48. Qb7+
{[%clk 0:00:04.4]} 48... Kh6 {[%clk 0:00:05.6]} 49. Qa6+ {[%clk 0:00:04.3]}
49... Ng6 {[%clk 0:00:05.7]} 50. Bd3 {[%clk 0:00:04.6]} 50... Qd6 {[%clk
0:00:05.5]} 51. Qxa5 {[%clk 0:00:04.1]} 51... Qxd3 {[%clk 0:00:05]} 52. h4
{[%clk 0:00:04.1]} 52... Qf3+ {[%clk 0:00:05.2]} 53. Kg1 {[%clk 0:00:04.4]}
53... Qf2+ {[%clk 0:00:05.6]} 0-1

[Event "Early-Titled-Tuesday-Blitz-January-30-2024"]
[Site "Chess.com"]
[Date "2024.01.30"]
[Round "2"]
[White "GiorgianBarbosa"]
[Black "Doublekk14"]
[Result "1/2-1/2"]
[WhiteElo "2505"]
[BlackElo "2250"]
[TimeControl "180+1"]
[EndTime "8:19:58 PST"]
[Termination "Game drawn - insufficient material"]

1. e4 {[%clk 0:03:00.5]} 1... c5 {[%clk 0:02:59.6]} 2. Nf3 {[%clk 0:02:59.7]}
2... e6 {[%clk 0:02:59.7]} 3. b3 {[%clk 0:02:57.9]} 3... d6 {[%clk 0:02:57]} 4.
Bb2 {[%clk 0:02:55.9]} 4... e5 {[%clk 0:02:57]} 5. Bc4 {[%clk 0:02:54.6]} 5...
h6 {[%clk 0:02:50.9]} 6. h3 {[%clk 0:02:51.5]} 6... Nf6 {[%clk 0:02:50.5]} 7.
Nc3 {[%clk 0:02:49.7]} 7... Be7 {[%clk 0:02:50]} 8. O-O {[%clk 0:02:47.9]} 8...
O-O {[%clk 0:02:49.9]} 9. a4 {[%clk 0:02:46.9]} 9... Nc6 {[%clk 0:02:49.7]} 10.
d3 {[%clk 0:02:42.9]} 10... Nd4 {[%clk 0:02:49.4]} 11. Nh2 {[%clk 0:02:31.5]}
11... Be6 {[%clk 0:02:42.4]} 12. f4 {[%clk 0:02:27.7]} 12... Bxc4 {[%clk
0:02:41.8]} 13. bxc4 {[%clk 0:02:25]} 13... exf4 {[%clk 0:02:36.1]} 14. Rxf4
{[%clk 0:02:25.9]} 14... Nd7 {[%clk 0:02:32]} 15. Nd5 {[%clk 0:02:22.8]} 15...
Bg5 {[%clk 0:02:30.5]} 16. Rf1 {[%clk 0:02:16.3]} 16... Ne5 {[%clk 0:02:29.1]}
17. Bxd4 {[%clk 0:02:12.8]} 17... cxd4 {[%clk 0:02:28.8]} 18. Nf3 {[%clk
0:02:12.6]} 18... Nc6 {[%clk 0:02:01.6]} 19. g3 {[%clk 0:02:02.9]} 19... f5
{[%clk 0:01:57.1]} 20. exf5 {[%clk 0:01:44.7]} 20... Rxf5 {[%clk 0:01:55.6]} 21.
Qe2 {[%clk 0:01:23.3]} 21... Qe8 {[%clk 0:01:43.8]} 22. Qxe8+ {[%clk 0:01:11.2]}
22... Rxe8 {[%clk 0:01:41.1]} 23. g4 {[%clk 0:01:06.3]} 23... Rf7 {[%clk
0:01:24]} 24. Nxg5 {[%clk 0:01:03.8]} 24... hxg5 {[%clk 0:01:17.2]} 25. Rxf7
{[%clk 0:01:01.2]} 25... Kxf7 {[%clk 0:01:17.2]} 26. Rf1+ {[%clk 0:00:58.4]}
26... Kg6 {[%clk 0:01:17.2]} 27. Kf2 {[%clk 0:00:54.1]} 27... Ne5 {[%clk
0:00:58.7]} 28. Rb1 {[%clk 0:00:44.3]} 28... b6 {[%clk 0:00:57.2]} 29. a5 {[%clk
0:00:42.9]} 29... Rf8+ {[%clk 0:00:36]} 30. Ke2 {[%clk 0:00:37.8]} 30... bxa5
{[%clk 0:00:30.7]} 31. Rb7 {[%clk 0:00:34.9]} 31... Rf3 {[%clk 0:00:28.7]} 32.
Ne7+ {[%clk 0:00:26]} 32... Kh7 {[%clk 0:00:15.6]} 33. Nf5 {[%clk 0:00:23.8]}
33... Rxh3 {[%clk 0:00:15.7]} 34. Rxg7+ {[%clk 0:00:23.9]} 34... Kh8 {[%clk
0:00:15.5]} 35. Rxa7 {[%clk 0:00:24.3]} 35... Rh2+ {[%clk 0:00:11.4]} 36. Kd1
{[%clk 0:00:23.4]} 36... Rh1+ {[%clk 0:00:09.7]} 37. Kd2 {[%clk 0:00:18.2]}
37... Rh2+ {[%clk 0:00:09.5]} 38. Kc1 {[%clk 0:00:17.9]} 38... Nxg4 {[%clk
0:00:09.8]} 39. Nxd6 {[%clk 0:00:16.5]} 39... Ne3 {[%clk 0:00:09.3]} 40. Nf7+
{[%clk 0:00:15]} 40... Kg8 {[%clk 0:00:08.1]} 41. Nxg5 {[%clk 0:00:15.9]} 41...
Rxc2+ {[%clk 0:00:08.2]} 42. Kb1 {[%clk 0:00:16.3]} 42... Rd2 {[%clk 0:00:05.9]}
43. c5 {[%clk 0:00:14.4]} 43... Rxd3 {[%clk 0:00:05.6]} 44. c6 {[%clk
0:00:14.6]} 44... Rc3 {[%clk 0:00:06.1]} 45. c7 {[%clk 0:00:14.7]} 45... d3
{[%clk 0:00:05.3]} 46. Ra8+ {[%clk 0:00:13.9]} 46... Kg7 {[%clk 0:00:05.5]} 47.
c8=Q {[%clk 0:00:05.9]} 47... Rxc8 {[%clk 0:00:05.5]} 48. Rxc8 {[%clk
0:00:06.8]} 48... d2 {[%clk 0:00:06.4]} 49. Rd8 {[%clk 0:00:07.1]} 49... d1=Q+
{[%clk 0:00:05.9]} 50. Rxd1 {[%clk 0:00:07.4]} 50... Nxd1 {[%clk 0:00:06]} 51.
Ka2 {[%clk 0:00:08.3]} 51... Nc3+ {[%clk 0:00:06]} 52. Ka3 {[%clk 0:00:09.1]}
52... Ne4 {[%clk 0:00:05]} 53. Ka4 {[%clk 0:00:10]} 53... Nxg5 {[%clk 0:00:05]}
54. Kxa5 {[%clk 0:00:10.5]} 1/2-1/2

[Event "Early-Titled-Tuesday-Blitz-January-30-2024"]
[Site "Chess.com"]
[Date "2024.01.30"]
[Round "2"]
[White "unclear15"]
[Black "Nikolakis2014"]
[Result "0-1"]
[WhiteElo "2401"]
[BlackElo "2753"]
[TimeControl "180+1"]
[EndTime "8:20:03 PST"]
[Termination "Nikolakis2014 won on time"]

1. e4 {[%clk 0:02:59.5]} 1... c5 {[%clk 0:02:59.1]} 2. Nf3 {[%clk 0:02:58.9]}
2... Nc6 {[%clk 0:02:59.2]} 3. Bb5 {[%clk 0:02:58.2]} 3... g6 {[%clk 0:02:58.8]}
4. Bxc6 {[%clk 0:02:56.2]} 4... dxc6 {[%clk 0:02:58.4]} 5. d3 {[%clk 0:02:54.1]}
5... Bg7 {[%clk 0:02:55.6]} 6. Nc3 {[%clk 0:02:52.2]} 6... c4 {[%clk 0:02:53.7]}
7. O-O {[%clk 0:02:47.1]} 7... cxd3 {[%clk 0:02:52.2]} 8. cxd3 {[%clk
0:02:44.4]} 8... Bg4 {[%clk 0:02:46.9]} 9. h3 {[%clk 0:02:42.4]} 9... Bxf3
{[%clk 0:02:46.2]} 10. Qxf3 {[%clk 0:02:41.6]} 10... Nf6 {[%clk 0:02:46]} 11. e5
{[%clk 0:02:27.6]} 11... Nd5 {[%clk 0:02:45.4]} 12. e6 {[%clk 0:02:26.5]} 12...
O-O {[%clk 0:02:37.7]} 13. exf7+ {[%clk 0:02:21.1]} 13... Rxf7 {[%clk
0:02:37.5]} 14. Qe4 {[%clk 0:02:19.5]} 14... Nxc3 {[%clk 0:02:36.8]} 15. bxc3
{[%clk 0:02:19.3]} 15... Bxc3 {[%clk 0:02:36.8]} 16. Rb1 {[%clk 0:02:18.6]}
16... e5 {[%clk 0:02:34.1]} 17. Qc4 {[%clk 0:02:02.5]} 17... Bd4 {[%clk
0:01:52.5]} 18. Rxb7 {[%clk 0:01:59.5]} 18... Qd5 {[%clk 0:01:52.6]} 19. Qxd5
{[%clk 0:01:38.6]} 19... cxd5 {[%clk 0:01:51.9]} 20. Rxf7 {[%clk 0:01:38.6]}
20... Kxf7 {[%clk 0:01:51.8]} 21. Be3 {[%clk 0:01:39.5]} 21... Bxe3 {[%clk
0:01:29.4]} 22. fxe3+ {[%clk 0:01:39.6]} 22... Ke6 {[%clk 0:01:30.2]} 23. Rb1
{[%clk 0:01:20.3]} 23... Rc8 {[%clk 0:01:29.9]} 24. Rb7 {[%clk 0:01:09.5]} 24...
Rc3 {[%clk 0:01:27.3]} 25. Rxa7 {[%clk 0:00:50.6]} 25... Rxd3 {[%clk 0:01:25.7]}
26. Kf2 {[%clk 0:00:51]} 26... h5 {[%clk 0:01:25.5]} 27. Ra6+ {[%clk 0:00:48.6]}
27... Kf5 {[%clk 0:01:24.9]} 28. Ke2 {[%clk 0:00:41.3]} 28... e4 {[%clk
0:01:14.9]} 29. Rd6 {[%clk 0:00:21.7]} 29... g5 {[%clk 0:01:05.4]} 30. a4 {[%clk
0:00:14.6]} 30... g4 {[%clk 0:00:52.2]} 31. hxg4+ {[%clk 0:00:13.1]} 31... hxg4
{[%clk 0:00:43.9]} 32. a5 {[%clk 0:00:12]} 32... Ke5 {[%clk 0:00:44.2]} 33. Rd8
{[%clk 0:00:11.8]} 33... Ra3 {[%clk 0:00:43.6]} 34. Re8+ {[%clk 0:00:11.6]}
34... Kd6 {[%clk 0:00:43.1]} 35. Rd8+ {[%clk 0:00:11]} 35... Kc6 {[%clk
0:00:41.9]} 36. Rg8 {[%clk 0:00:09.9]} 36... Ra2+ {[%clk 0:00:32]} 37. Ke1
{[%clk 0:00:09.2]} 37... Rxa5 {[%clk 0:00:31.4]} 38. Rxg4 {[%clk 0:00:08.3]}
38... Kc5 {[%clk 0:00:32.1]} 39. Rg8 {[%clk 0:00:06.6]} 39... Kc4 {[%clk
0:00:32.6]} 40. Kf2 {[%clk 0:00:03.6]} 40... Kd3 {[%clk 0:00:29.1]} 41. Kg3
{[%clk 0:00:02]} 41... Kxe3 {[%clk 0:00:28.6]} 42. Kh4 {[%clk 0:00:01.5]} 42...
d4 {[%clk 0:00:29.1]} 43. g4 {[%clk 0:00:02.3]} 43... d3 {[%clk 0:00:29.2]} 44.
g5 {[%clk 0:00:02.8]} 44... d2 {[%clk 0:00:25.2]} 45. Rd8 {[%clk 0:00:03.7]}
45... Ke2 {[%clk 0:00:19.8]} 46. g6 {[%clk 0:00:03.6]} 46... Ra1 {[%clk
0:00:19]} 47. g7 {[%clk 0:00:03.7]} 47... Rh1+ {[%clk 0:00:18.9]} 48. Kg5 {[%clk
0:00:03.6]} 48... Rg1+ {[%clk 0:00:19.2]} 49. Kf6 {[%clk 0:00:04.4]} 49... e3
{[%clk 0:00:19.5]} 50. g8=Q {[%clk 0:00:02.7]} 50... Rxg8 {[%clk 0:00:19.3]} 51.
Rxg8 {[%clk 0:00:03.6]} 51... d1=Q {[%clk 0:00:20]} 52. Rg2+ {[%clk 0:00:03.8]}
52... Kf3 {[%clk 0:00:20.4]} 53. Rg6 {[%clk 0:00:04]} 53... Qd6+ {[%clk
0:00:20.5]} 54. Kf7 {[%clk 0:00:03.1]} 54... Qxg6+ {[%clk 0:00:21]} 55. Kxg6
{[%clk 0:00:02.4]} 55... e2 {[%clk 0:00:21.9]} 56. Kf5 {[%clk 0:00:01.6]} 56...
e1=Q {[%clk 0:00:22.8]} 0-1

[Event "Early-Titled-Tuesday-Blitz-January-30-2024"]
[Site "Chess.com"]
[Date "2024.01.30"]
[Round "2"]
[White "Ducke13"]
[Black "jeetjain"]
[Result "0-1"]
[WhiteElo "2282"]
[BlackElo "2536"]
[TimeControl "180+1"]
[EndTime "8:20:03 PST"]
[Termination "jeetjain won by checkmate"]

1. d4 {[%clk 0:03:00.9]} 1... Nf6 {[%clk 0:02:45.7]} 2. g3 {[%clk 0:03:00.5]}
2... c5 {[%clk 0:02:42.1]} 3. d5 {[%clk 0:03:00.1]} 3... g6 {[%clk 0:02:38.4]}
4. c4 {[%clk 0:02:59.6]} 4... Bg7 {[%clk 0:02:32.8]} 5. Nc3 {[%clk 0:02:59.1]}
5... O-O {[%clk 0:02:25.7]} 6. Nf3 {[%clk 0:02:57.1]} 6... e6 {[%clk 0:02:23.1]}
7. Bg2 {[%clk 0:02:56.8]} 7... exd5 {[%clk 0:02:23.3]} 8. cxd5 {[%clk
0:02:57.7]} 8... a6 {[%clk 0:02:23.6]} 9. a4 {[%clk 0:02:57.3]} 9... d6 {[%clk
0:02:23.6]} 10. O-O {[%clk 0:02:57.9]} 10... b6 {[%clk 0:02:22.3]} 11. Re1
{[%clk 0:02:54.8]} 11... Re8 {[%clk 0:02:21.8]} 12. h3 {[%clk 0:02:52.3]} 12...
Ne4 {[%clk 0:02:19.3]} 13. Ra3 {[%clk 0:02:43.9]} 13... Bb7 {[%clk 0:02:16.4]}
14. Nd2 {[%clk 0:02:33.4]} 14... Nxc3 {[%clk 0:02:13.4]} 15. bxc3 {[%clk
0:02:32.4]} 15... b5 {[%clk 0:02:13.8]} 16. Qb3 {[%clk 0:02:10.9]} 16... Qd7
{[%clk 0:01:39.7]} 17. Bb2 {[%clk 0:01:40.2]} 17... c4 {[%clk 0:01:32.3]} 18.
Qc2 {[%clk 0:01:33.8]} 18... Qc7 {[%clk 0:01:29.6]} 19. Ba1 {[%clk 0:01:02.5]}
19... Nd7 {[%clk 0:01:28.9]} 20. Rb1 {[%clk 0:00:56.8]} 20... Qc5 {[%clk
0:01:23.2]} 21. Ra2 {[%clk 0:00:52.3]} 21... Bxd5 {[%clk 0:01:21]} 22. e4 {[%clk
0:00:49.6]} 22... Bc6 {[%clk 0:01:19.1]} 23. axb5 {[%clk 0:00:43.9]} 23... axb5
{[%clk 0:01:19.1]} 24. Rxa8 {[%clk 0:00:44.8]} 24... Rxa8 {[%clk 0:01:19.6]} 25.
Nf3 {[%clk 0:00:45.3]} 25... Nb6 {[%clk 0:01:07.6]} 26. Nd4 {[%clk 0:00:45.4]}
26... Bd7 {[%clk 0:01:06]} 27. e5 {[%clk 0:00:41.4]} 27... d5 {[%clk 0:01:05.4]}
28. e6 {[%clk 0:00:37.8]} 28... fxe6 {[%clk 0:01:04.7]} 29. Re1 {[%clk
0:00:36.5]} 29... e5 {[%clk 0:01:04]} 30. Nf3 {[%clk 0:00:31.2]} 30... e4 {[%clk
0:00:59.3]} 31. Nd4 {[%clk 0:00:29.2]} 31... Bxd4 {[%clk 0:00:57]} 32. cxd4
{[%clk 0:00:29.1]} 32... Qa3 {[%clk 0:00:54.9]} 33. Bxe4 {[%clk 0:00:24.6]}
33... dxe4 {[%clk 0:00:52.2]} 34. Qxe4 {[%clk 0:00:25.1]} 34... Re8 {[%clk
0:00:51.7]} 35. Qb1 {[%clk 0:00:13]} 35... c3 {[%clk 0:00:44.9]} 36. Rxe8+
{[%clk 0:00:08.3]} 36... Bxe8 {[%clk 0:00:45.8]} 37. d5 {[%clk 0:00:08.2]} 37...
Nxd5 {[%clk 0:00:43.5]} 38. Qe1 {[%clk 0:00:08]} 38... Bf7 {[%clk 0:00:42.7]}
39. Kh2 {[%clk 0:00:05.9]} 39... b4 {[%clk 0:00:40.2]} 40. h4 {[%clk 0:00:04]}
40... Qa2 {[%clk 0:00:33.9]} 41. Kg2 {[%clk 0:00:02.6]} 41... Qd2 {[%clk
0:00:33.3]} 42. Qe5 {[%clk 0:00:02.1]} 42... Ne3+ {[%clk 0:00:18.2]} 43. Qxe3
{[%clk 0:00:01.9]} 43... Qxe3 {[%clk 0:00:18]} 44. fxe3 {[%clk 0:00:02.8]} 44...
Bd5+ {[%clk 0:00:15.1]} 45. Kf2 {[%clk 0:00:03.1]} 45... Be4 {[%clk 0:00:15.7]}
46. Ke2 {[%clk 0:00:03.2]} 46... Kf7 {[%clk 0:00:16.1]} 47. Kd1 {[%clk
0:00:03.3]} 47... Ke6 {[%clk 0:00:16.4]} 48. Ke2 {[%clk 0:00:03.8]} 48... Kd5
{[%clk 0:00:16.6]} 49. Kd1 {[%clk 0:00:04]} 49... Kc4 {[%clk 0:00:17.1]} 50. Kc1
{[%clk 0:00:04.4]} 50... Kb3 {[%clk 0:00:16.5]} 51. g4 {[%clk 0:00:03.8]} 51...
Ka2 {[%clk 0:00:16.7]} 52. Bxc3 {[%clk 0:00:01.2]} 52... bxc3 {[%clk 0:00:17.6]}
53. h5 {[%clk 0:00:01.5]} 53... g5 {[%clk 0:00:17.6]} 54. h6 {[%clk 0:00:01.5]}
54... Kb3 {[%clk 0:00:18.5]} 55. Kd1 {[%clk 0:00:01.6]} 55... Kb2 {[%clk
0:00:19]} 56. Ke2 {[%clk 0:00:02.1]} 56... c2 {[%clk 0:00:19.9]} 57. Kf2 {[%clk
0:00:03]} 57... c1=Q {[%clk 0:00:20.2]} 58. Kg3 {[%clk 0:00:03.9]} 58... Qg1+
{[%clk 0:00:19.9]} 59. Kh3 {[%clk 0:00:03.9]} 59... Qg2# {[%clk 0:00:19.8]} 0-1